[Event "Titled Tuesday Blitz July 11 Early 2023"]
[White "Bashirli, Saadat"]
[Black "Postlmayer, Jakob"]
[WhiteFideId "13429990"]
[BlackFideId "1643622"]
[WhiteElo "2361"]
[BlackElo "2486"]
[Result "0-1"]
[Round "10"]
[TimeControl "180+2"]
[Date "2023.07.11"]
[WhiteClock "0:00:02"]
[BlackClock "0:00:20"]
[Board "105"]

1. e4 {[%clk 0:03:00]}  c6 {[%clk 0:02:56]} 2. d4 {[%clk 0:03:00]}  d5 {[%clk 0:02:57]} 3. exd5 {[%clk 0:02:57]}  cxd5 {[%clk 0:02:58]} 4. Bd3 {[%clk 0:02:57]}  Nc6 {[%clk 0:02:57]} 5. c3 {[%clk 0:02:57]}  Nf6 {[%clk 0:02:57]} 6. Bf4 {[%clk 0:02:56]}  Bg4 {[%clk 0:02:57]} 7. Ne2 {[%clk 0:02:54]}  e6 {[%clk 0:02:52]} 8. Nd2 {[%clk 0:02:52]}  Bd6 {[%clk 0:02:46]} 9. Bxd6 {[%clk 0:02:47]}  Qxd6 {[%clk 0:02:47]} 10. f3 {[%clk 0:02:47]}  Bh5 {[%clk 0:02:44]} 11. Ng3 {[%clk 0:02:47]}  Bg6 {[%clk 0:02:43]} 12. Nb3 {[%clk 0:02:44]}  O-O-O {[%clk 0:02:38]} 13. Qd2 {[%clk 0:02:40]}  Kb8 {[%clk 0:02:38]} 14. O-O-O {[%clk 0:02:39]}  Rc8 {[%clk 0:02:36]} 15. Kb1 {[%clk 0:02:38]}  Qc7 {[%clk 0:02:35]} 16. Bxg6 {[%clk 0:02:37]}  hxg6 {[%clk 0:02:35]} 17. Nc5 {[%clk 0:02:30]}  Nd7 {[%clk 0:02:33]} 18. Nd3 {[%clk 0:02:22]}  Rh4 {[%clk 0:02:25]} 19. Qg5 {[%clk 0:02:18]}  Rch8 {[%clk 0:02:23]} 20. h3 {[%clk 0:01:57]}  f6 {[%clk 0:02:19]} 21. Qxg6 {[%clk 0:01:55]}  Nf8 {[%clk 0:02:17]} 22. Qe8+ {[%clk 0:01:54]}  Qc8 {[%clk 0:01:37]} 23. Qxc8+ {[%clk 0:01:53]}  Kxc8 {[%clk 0:01:38]} 24. Nc5 {[%clk 0:01:52]}  b6 {[%clk 0:01:35]} 25. Nd3 {[%clk 0:01:51]}  Kd7 {[%clk 0:01:33]} 26. Rhe1 {[%clk 0:01:51]}  g5 {[%clk 0:01:26]} 27. Nf2 {[%clk 0:01:46]}  R4h7 {[%clk 0:01:19]} 28. Ng4 {[%clk 0:01:42]}  Rf7 {[%clk 0:01:19]} 29. Rd2 {[%clk 0:01:40]}  Ng6 {[%clk 0:01:18]} 30. Nf2 {[%clk 0:01:29]}  a5 {[%clk 0:00:58]} 31. Nd3 {[%clk 0:01:24]}  Re7 {[%clk 0:00:47]} 32. Rde2 {[%clk 0:01:19]}  Kd6 {[%clk 0:00:42]} 33. Kc2 {[%clk 0:01:13]}  Rc8 {[%clk 0:00:39]} 34. Kd2 {[%clk 0:01:12]}  Rh8 {[%clk 0:00:37]} 35. Nf2 {[%clk 0:01:03]}  Nf4 {[%clk 0:00:36]} 36. Ng4 {[%clk 0:00:51]}  Nxe2 {[%clk 0:00:35]} 37. Rxe2 {[%clk 0:00:52]}  Rf7 {[%clk 0:00:31]} 38. Kd3 {[%clk 0:00:45]}  Ne7 {[%clk 0:00:20]} 39. Kd2 {[%clk 0:00:35]}  Ng6 {[%clk 0:00:20]} 40. Kc2 {[%clk 0:00:22]}  Nf4 {[%clk 0:00:20]} 41. Rd2 {[%clk 0:00:21]}  Rc8 {[%clk 0:00:19]} 42. Ne3 {[%clk 0:00:19]}  b5 {[%clk 0:00:19]} 43. Kd1 {[%clk 0:00:18]}  Rfc7 {[%clk 0:00:19]} 44. Rc2 {[%clk 0:00:14]}  b4 {[%clk 0:00:18]} 45. Kd2 {[%clk 0:00:12]}  bxc3+ {[%clk 0:00:18]} 46. bxc3 {[%clk 0:00:13]}  Rb8 {[%clk 0:00:18]} 47. c4 {[%clk 0:00:12]}  dxc4 {[%clk 0:00:16]} 48. Nxc4+ {[%clk 0:00:12]}  Ke7 {[%clk 0:00:15]} 49. Ne4 {[%clk 0:00:12]}  a4 {[%clk 0:00:14]} 50. Ke3 {[%clk 0:00:09]}  Rbc8 {[%clk 0:00:12]} 51. Ned6 {[%clk 0:00:06]}  Rd8 {[%clk 0:00:10]} 52. Rb2 {[%clk 0:00:04]}  Rxd6 {[%clk 0:00:10]} 53. Nxd6 {[%clk 0:00:04]}  Kxd6 {[%clk 0:00:11]} 54. h4 {[%clk 0:00:04]}  Nd5+ {[%clk 0:00:10]} 55. Kd3 {[%clk 0:00:04]}  Rc3+ {[%clk 0:00:10]} 56. Kd2 {[%clk 0:00:04]}  gxh4 {[%clk 0:00:11]} 57. f4 {[%clk 0:00:02]}  Ra3 {[%clk 0:00:11]} 58. Ke2 {[%clk 0:00:02]}  Nxf4+ {[%clk 0:00:11]} 59. Kd2 {[%clk 0:00:02]}  Kd5 {[%clk 0:00:12]} 60. Kc2 {[%clk 0:00:02]}  Kxd4 {[%clk 0:00:12]} 61. Rb4+ {[%clk 0:00:02]}  Ke5 {[%clk 0:00:12]} 62. Kb2 {[%clk 0:00:03]}  Rg3 {[%clk 0:00:12]} 63. Rb5+ {[%clk 0:00:02]}  Nd5 {[%clk 0:00:12]} 64. Ra5 {[%clk 0:00:02]}  Rxg2+ {[%clk 0:00:12]} 65. Ka3 {[%clk 0:00:03]}  h3 {[%clk 0:00:13]} 66. Rxa4 {[%clk 0:00:03]}  h2 {[%clk 0:00:14]} 67. Rh4 {[%clk 0:00:04]}  f5 {[%clk 0:00:14]} 68. Rh8 {[%clk 0:00:03]}  Ne3 {[%clk 0:00:14]} 69. Kb3 {[%clk 0:00:04]}  Ng4 {[%clk 0:00:15]} 70. a4 {[%clk 0:00:04]}  Rg1 {[%clk 0:00:15]} 71. a5 {[%clk 0:00:03]}  h1=Q {[%clk 0:00:15]} 72. Rxh1 {[%clk 0:00:04]}  Rxh1 {[%clk 0:00:16]} 73. a6 {[%clk 0:00:05]}  Rh8 {[%clk 0:00:16]} 74. a7 {[%clk 0:00:05]}  f4 {[%clk 0:00:17]} 75. a8=N {[%clk 0:00:04]}  Rxa8 {[%clk 0:00:17]} 76. Kc3 {[%clk 0:00:04]}  f3 {[%clk 0:00:17]} 77. Kd3 {[%clk 0:00:04]}  Rf8 {[%clk 0:00:17]} 78. Kd2 {[%clk 0:00:05]}  f2 {[%clk 0:00:18]} 79. Ke2 {[%clk 0:00:05]}  f1=Q+ {[%clk 0:00:18]} 80. Kd2 {[%clk 0:00:06]}  Rf2+ {[%clk 0:00:18]} 81. Kc3 {[%clk 0:00:07]}  Rf3+ {[%clk 0:00:19]} 82. Kb4 {[%clk 0:00:08]}  Rf4+ {[%clk 0:00:19]} 83. Ka5 {[%clk 0:00:09]}  Qa1+ {[%clk 0:00:18]} 84. Kb5 {[%clk 0:00:07]}  Qb2+ {[%clk 0:00:19]} 85. Kc5 {[%clk 0:00:07]}  Qc3+ {[%clk 0:00:19]} 86. Kb5 {[%clk 0:00:07]}  Rb4+ {[%clk 0:00:20]} 87. Ka6 {[%clk 0:00:02]}  Qa3# {[%clk 0:00:20]} 0-1


[Site "https://www.chess.com"]

[Event "Titled Tuesday Blitz July 11 Early 2023"]
[White "Nithyalakshmi, Sivanesan"]
[Black "Ergazakis, Ioannis"]
[WhiteFideId "5706955"]
[BlackFideId "4290976"]
[WhiteElo "2365"]
[BlackElo "2484"]
[Result "0-1"]
[Round "10"]
[TimeControl "180+2"]
[Date "2023.07.11"]
[WhiteClock "0:00:00"]
[BlackClock "0:00:44"]
[Board "106"]

1. e4 {[%clk 0:03:00]}  e6 {[%clk 0:03:00]} 2. d4 {[%clk 0:03:00]}  d5 {[%clk 0:03:01]} 3. Bd3 {[%clk 0:03:00]}  dxe4 {[%clk 0:03:01]} 4. Bxe4 {[%clk 0:03:01]}  Nf6 {[%clk 0:03:01]} 5. Bf3 {[%clk 0:03:01]}  c5 {[%clk 0:03:02]} 6. Ne2 {[%clk 0:03:01]}  Nc6 {[%clk 0:03:02]} 7. Be3 {[%clk 0:02:42]}  Nd5 {[%clk 0:02:56]} 8. Bxd5 {[%clk 0:02:36]}  Qxd5 {[%clk 0:02:57]} 9. Nbc3 {[%clk 0:02:33]}  Qxg2 {[%clk 0:02:52]} 10. Rg1 {[%clk 0:02:31]}  Qh3 {[%clk 0:02:17]} 11. Nb5 {[%clk 0:02:00]}  Rb8 {[%clk 0:02:06]} 12. Nc7+ {[%clk 0:01:50]}  Kd8 {[%clk 0:01:57]} 13. Nb5 {[%clk 0:01:43]}  cxd4 {[%clk 0:01:53]} 14. Nexd4 {[%clk 0:01:32]}  Bd7 {[%clk 0:01:53]} 15. Nxc6+ {[%clk 0:00:41]}  bxc6 {[%clk 0:01:54]} 16. Nd4 {[%clk 0:00:35]}  Rc8 {[%clk 0:01:42]} 17. Qd2 {[%clk 0:00:29]}  Ke8 {[%clk 0:00:56]} 18. O-O-O {[%clk 0:00:28]}  Rc7 {[%clk 0:00:57]} 19. Bf4 {[%clk 0:00:22]}  Rb7 {[%clk 0:00:56]} 20. Nxc6 {[%clk 0:00:18]}  Ba3 {[%clk 0:00:54]} 21. Rg3 {[%clk 0:00:05]}  Bxb2+ {[%clk 0:00:53]} 22. Kb1 {[%clk 0:00:05]}  Bc3+ {[%clk 0:00:51]} 23. Nb4 {[%clk 0:00:02]}  Rxb4+ {[%clk 0:00:50]} 24. Kc1 {[%clk 0:00:02]}  Bxd2+ {[%clk 0:00:51]} 25. Bxd2 {[%clk 0:00:02]}  Qh4 {[%clk 0:00:49]} 26. Bxb4 {[%clk 0:00:02]}  Qxb4 {[%clk 0:00:49]} 27. Rxg7 {[%clk 0:00:02]}  Qf4+ {[%clk 0:00:44]} 28. Kb1 {[%clk 0:00:00]}  Ke7 {[%clk 0:00:44]} 0-1


[Site "https://www.chess.com"]

[Event "Titled Tuesday Blitz July 11 Early 2023"]
[White "Baches Garcia, Guillermo"]
[Black "Shapiro, Daniel"]
[WhiteFideId "2209764"]
[BlackFideId "2001780"]
[WhiteElo "2472"]
[BlackElo "2342"]
[Result "0-1"]
[Round "10"]
[TimeControl "180+2"]
[Date "2023.07.11"]
[WhiteClock "0:00:00"]
[BlackClock "0:01:11"]
[Board "107"]

1. e4 {[%clk 0:03:00]}  c5 {[%clk 0:02:55]} 2. Nf3 {[%clk 0:03:00]}  e6 {[%clk 0:02:54]} 3. d4 {[%clk 0:02:58]}  cxd4 {[%clk 0:02:54]} 4. Nxd4 {[%clk 0:02:59]}  a6 {[%clk 0:02:55]} 5. Bd3 {[%clk 0:02:59]}  g6 {[%clk 0:02:54]} 6. O-O {[%clk 0:02:55]}  Bg7 {[%clk 0:02:54]} 7. Nb3 {[%clk 0:02:48]}  Ne7 {[%clk 0:02:53]} 8. c4 {[%clk 0:02:47]}  Nbc6 {[%clk 0:02:51]} 9. Nc3 {[%clk 0:02:46]}  O-O {[%clk 0:02:51]} 10. Be3 {[%clk 0:02:36]}  d5 {[%clk 0:02:40]} 11. exd5 {[%clk 0:02:16]}  exd5 {[%clk 0:02:39]} 12. Bc5 {[%clk 0:02:13]}  dxc4 {[%clk 0:02:28]} 13. Bxc4 {[%clk 0:02:13]}  b5 {[%clk 0:02:27]} 14. Be2 {[%clk 0:02:01]}  Be6 {[%clk 0:02:18]} 15. Bf3 {[%clk 0:01:55]}  Rc8 {[%clk 0:02:17]} 16. Rc1 {[%clk 0:01:47]}  Qxd1 {[%clk 0:02:08]} 17. Rfxd1 {[%clk 0:01:47]}  Rfd8 {[%clk 0:01:58]} 18. h3 {[%clk 0:01:32]}  a5 {[%clk 0:01:23]} 19. Bb6 {[%clk 0:01:27]}  Rxd1+ {[%clk 0:01:18]} 20. Rxd1 {[%clk 0:01:26]}  a4 {[%clk 0:01:18]} 21. Nc5 {[%clk 0:00:42]}  a3 {[%clk 0:01:15]} 22. Nxb5 {[%clk 0:00:27]}  axb2 {[%clk 0:01:10]} 23. Nxe6 {[%clk 0:00:27]}  fxe6 {[%clk 0:01:11]} 24. Rb1 {[%clk 0:00:00]}  Rb8 {[%clk 0:01:11]} 0-1


[Site "https://www.chess.com"]

[Event "Titled Tuesday Blitz July 11 Early 2023"]
[White "Andreassen, Lars"]
[Black "Namitbir Singh Walia"]
[WhiteFideId "1504878"]
[BlackFideId "35071068"]
[WhiteElo "2340"]
[BlackElo "2471"]
[Result "1-0"]
[Round "10"]
[TimeControl "180+2"]
[Date "2023.07.11"]
[WhiteClock "0:01:17"]
[BlackClock "0:01:29"]
[Board "108"]

1. d4 {[%clk 0:03:00]}  d5 {[%clk 0:02:58]} 2. Nf3 {[%clk 0:03:01]}  Nf6 {[%clk 0:02:58]} 3. c4 {[%clk 0:03:01]}  c6 {[%clk 0:02:59]} 4. Nc3 {[%clk 0:03:02]}  e6 {[%clk 0:02:59]} 5. Bg5 {[%clk 0:03:01]}  dxc4 {[%clk 0:02:55]} 6. e4 {[%clk 0:03:01]}  b5 {[%clk 0:02:55]} 7. e5 {[%clk 0:03:01]}  h6 {[%clk 0:02:55]} 8. Bh4 {[%clk 0:03:00]}  g5 {[%clk 0:02:56]} 9. exf6 {[%clk 0:03:00]}  gxh4 {[%clk 0:02:55]} 10. Ne5 {[%clk 0:03:00]}  Qxf6 {[%clk 0:02:50]} 11. Be2 {[%clk 0:03:01]}  Rg8 {[%clk 0:02:45]} 12. Bh5 {[%clk 0:02:58]}  Rg7 {[%clk 0:02:32]} 13. Ne4 {[%clk 0:02:56]}  Qd8 {[%clk 0:02:21]} 14. O-O {[%clk 0:02:48]}  h3 {[%clk 0:02:19]} 15. g3 {[%clk 0:02:36]}  Nd7 {[%clk 0:02:13]} 16. Qf3 {[%clk 0:02:06]}  Nxe5 {[%clk 0:02:11]} 17. dxe5 {[%clk 0:02:06]}  Qc7 {[%clk 0:02:00]} 18. Nf6+ {[%clk 0:01:41]}  Ke7 {[%clk 0:02:00]} 19. Rfe1 {[%clk 0:01:36]}  Bb7 {[%clk 0:01:47]} 20. Rad1 {[%clk 0:01:33]}  Rd8 {[%clk 0:01:46]} 21. Qe3 {[%clk 0:01:24]}  Rg5 {[%clk 0:01:29]} 22. Qc5+ {[%clk 0:01:17]} 1-0


[Site "https://www.chess.com"]

[Event "Titled Tuesday Blitz July 11 Early 2023"]
[White "Begunov, Konstantin"]
[Black "Okike, David"]
[WhiteFideId "4118510"]
[BlackFideId "8500134"]
[WhiteElo "2432"]
[BlackElo "2321"]
[Result "1-0"]
[Round "10"]
[TimeControl "180+2"]
[Date "2023.07.11"]
[WhiteClock "0:00:11"]
[BlackClock "0:01:29"]
[Board "111"]

1. d4 {[%clk 0:02:57]}  Nf6 {[%clk 0:02:59]} 2. c4 {[%clk 0:02:58]}  e6 {[%clk 0:02:52]} 3. Nf3 {[%clk 0:02:57]}  Bb4+ {[%clk 0:02:48]} 4. Nbd2 {[%clk 0:02:57]}  b6 {[%clk 0:02:47]} 5. a3 {[%clk 0:02:57]}  Be7 {[%clk 0:02:47]} 6. e4 {[%clk 0:02:57]}  d5 {[%clk 0:02:47]} 7. cxd5 {[%clk 0:02:57]}  exd5 {[%clk 0:02:47]} 8. e5 {[%clk 0:02:57]}  Nfd7 {[%clk 0:02:48]} 9. Bd3 {[%clk 0:02:56]}  c5 {[%clk 0:02:47]} 10. O-O {[%clk 0:02:52]}  c4 {[%clk 0:02:47]} 11. Bb1 {[%clk 0:02:49]}  b5 {[%clk 0:02:48]} 12. Re1 {[%clk 0:02:47]}  Nb6 {[%clk 0:02:47]} 13. Nf1 {[%clk 0:02:45]}  Nc6 {[%clk 0:02:47]} 14. Ng3 {[%clk 0:02:44]}  Bg4 {[%clk 0:02:46]} 15. Be3 {[%clk 0:02:26]}  a5 {[%clk 0:02:42]} 16. h3 {[%clk 0:02:26]}  Be6 {[%clk 0:02:41]} 17. Nf5 {[%clk 0:02:20]}  g6 {[%clk 0:02:36]} 18. Nxe7 {[%clk 0:02:18]}  Nxe7 {[%clk 0:02:36]} 19. Bg5 {[%clk 0:02:11]}  Qd7 {[%clk 0:02:35]} 20. Bf6 {[%clk 0:02:06]}  Rg8 {[%clk 0:02:32]} 21. Qd2 {[%clk 0:02:06]}  h5 {[%clk 0:02:30]} 22. Ng5 {[%clk 0:01:59]}  O-O-O {[%clk 0:02:29]} 23. Qxa5 {[%clk 0:01:57]}  Kb7 {[%clk 0:02:29]} 24. Bxe7 {[%clk 0:01:43]}  Qxe7 {[%clk 0:02:28]} 25. Nxe6 {[%clk 0:01:39]}  fxe6 {[%clk 0:02:28]} 26. Qxb5 {[%clk 0:01:39]}  Rdf8 {[%clk 0:02:23]} 27. a4 {[%clk 0:01:35]}  Qd7 {[%clk 0:02:23]} 28. Qb4 {[%clk 0:01:25]}  Ka6 {[%clk 0:02:22]} 29. a5 {[%clk 0:01:22]}  Na8 {[%clk 0:02:22]} 30. Qd6+ {[%clk 0:00:35]}  Qxd6 {[%clk 0:02:22]} 31. exd6 {[%clk 0:00:36]}  Rf6 {[%clk 0:02:20]} 32. b3 {[%clk 0:00:30]}  Rd8 {[%clk 0:02:15]} 33. bxc4 {[%clk 0:00:29]}  dxc4 {[%clk 0:02:15]} 34. Ba2 {[%clk 0:00:28]}  Rxd6 {[%clk 0:02:15]} 35. Bxc4+ {[%clk 0:00:28]}  Ka7 {[%clk 0:02:14]} 36. Rad1 {[%clk 0:00:21]}  Nc7 {[%clk 0:02:13]} 37. f3 {[%clk 0:00:20]}  Nd5 {[%clk 0:02:12]} 38. Bxd5 {[%clk 0:00:19]}  Rxd5 {[%clk 0:02:12]} 39. Re5 {[%clk 0:00:19]}  Ka6 {[%clk 0:02:08]} 40. Rxd5 {[%clk 0:00:18]}  exd5 {[%clk 0:02:09]} 41. Rc1 {[%clk 0:00:18]}  Rf4 {[%clk 0:02:01]} 42. Rc6+ {[%clk 0:00:17]}  Kxa5 {[%clk 0:02:00]} 43. Rxg6 {[%clk 0:00:18]}  Rxd4 {[%clk 0:01:59]} 44. Rg5 {[%clk 0:00:19]}  h4 {[%clk 0:01:59]} 45. Rg4 {[%clk 0:00:19]}  Rd1+ {[%clk 0:01:59]} 46. Kf2 {[%clk 0:00:20]}  Rd2+ {[%clk 0:01:59]} 47. Ke3 {[%clk 0:00:19]}  Rb2 {[%clk 0:01:57]} 48. Kd4 {[%clk 0:00:20]}  Rd2+ {[%clk 0:01:56]} 49. Kc3 {[%clk 0:00:19]}  Rf2 {[%clk 0:01:56]} 50. Kd4 {[%clk 0:00:17]}  Rd2+ {[%clk 0:01:56]} 51. Ke3 {[%clk 0:00:18]}  Rb2 {[%clk 0:01:55]} 52. f4 {[%clk 0:00:18]}  Kb6 {[%clk 0:01:55]} 53. f5 {[%clk 0:00:19]}  Kc6 {[%clk 0:01:55]} 54. Kd4 {[%clk 0:00:19]}  Rf2 {[%clk 0:01:51]} 55. Ke5 {[%clk 0:00:19]}  Re2+ {[%clk 0:01:51]} 56. Kf6 {[%clk 0:00:18]}  Kc5 {[%clk 0:01:50]} 57. Kg7 {[%clk 0:00:18]}  d4 {[%clk 0:01:51]} 58. f6 {[%clk 0:00:19]}  d3 {[%clk 0:01:51]} 59. f7 {[%clk 0:00:19]}  Rf2 {[%clk 0:01:49]} 60. Rg5+ {[%clk 0:00:18]}  Kc4 {[%clk 0:01:49]} 61. Rg6 {[%clk 0:00:17]}  Kc5 {[%clk 0:01:49]} 62. Rg5+ {[%clk 0:00:15]}  Kc4 {[%clk 0:01:48]} 63. Rg6 {[%clk 0:00:15]}  Kd5 {[%clk 0:01:48]} 64. Rf6 {[%clk 0:00:15]}  Rxg2+ {[%clk 0:01:48]} 65. Kh7 {[%clk 0:00:13]}  d2 {[%clk 0:01:44]} 66. f8=Q {[%clk 0:00:13]}  Kd4 {[%clk 0:01:44]} 67. Rd6+ {[%clk 0:00:13]}  Ke3 {[%clk 0:01:44]} 68. Qe7+ {[%clk 0:00:12]}  Kf3 {[%clk 0:01:43]} 69. Qf6+ {[%clk 0:00:12]}  Kg3 {[%clk 0:01:41]} 70. Qe5+ {[%clk 0:00:11]}  Kxh3 {[%clk 0:01:41]} 71. Qe3+ {[%clk 0:00:11]}  Kh2 {[%clk 0:01:40]} 72. Rxd2 {[%clk 0:00:11]}  h3 {[%clk 0:01:41]} 73. Qf4+ {[%clk 0:00:11]}  Kh1 {[%clk 0:01:39]} 74. Rd1+ {[%clk 0:00:11]}  Rg1 {[%clk 0:01:40]} 75. Qf3+ {[%clk 0:00:11]}  Kh2 {[%clk 0:01:40]} 76. Qf2+ {[%clk 0:00:10]}  Rg2 {[%clk 0:01:40]} 77. Qf3 {[%clk 0:00:09]}  Rg1 {[%clk 0:01:37]} 78. Rd2+ {[%clk 0:00:09]}  Rg2 {[%clk 0:01:37]} 79. Rd3 {[%clk 0:00:09]}  Kg1 {[%clk 0:01:33]} 80. Qxh3 {[%clk 0:00:10]}  Rh2 {[%clk 0:01:33]} 81. Qxh2+ {[%clk 0:00:10]}  Kxh2 {[%clk 0:01:33]} 82. Kg6 {[%clk 0:00:11]}  Kg2 {[%clk 0:01:29]} 83. Kg5 {[%clk 0:00:11]} 1-0


[Site "https://www.chess.com"]

[Event "Titled Tuesday Blitz July 11 Early 2023"]
[White "Lopez Gracia, Fernando"]
[Black "SicilianPanzer"]
[WhiteFideId "2207184"]
[WhiteElo "2427"]
[BlackElo "2247"]
[Result "0-1"]
[Round "10"]
[TimeControl "180+2"]
[Date "2023.07.11"]
[WhiteClock "0:01:25"]
[BlackClock "0:00:37"]
[Board "112"]

1. e4 {[%clk 0:03:00]}  e6 {[%clk 0:02:58]} 2. d4 {[%clk 0:03:00]}  d5 {[%clk 0:02:56]} 3. Nd2 {[%clk 0:03:00]}  h6 {[%clk 0:02:55]} 4. exd5 {[%clk 0:02:51]}  exd5 {[%clk 0:02:55]} 5. Bd3 {[%clk 0:02:51]}  Nf6 {[%clk 0:02:53]} 6. Ngf3 {[%clk 0:02:52]}  Bd6 {[%clk 0:02:52]} 7. O-O {[%clk 0:02:52]}  O-O {[%clk 0:02:52]} 8. c4 {[%clk 0:02:53]}  c6 {[%clk 0:02:45]} 9. c5 {[%clk 0:02:52]}  Bc7 {[%clk 0:02:43]} 10. b4 {[%clk 0:02:53]}  Bg4 {[%clk 0:02:34]} 11. h3 {[%clk 0:02:51]}  Bh5 {[%clk 0:02:34]} 12. Qc2 {[%clk 0:02:50]}  Bxf3 {[%clk 0:02:18]} 13. Nxf3 {[%clk 0:02:51]}  Re8 {[%clk 0:02:18]} 14. Bd2 {[%clk 0:02:48]}  Nbd7 {[%clk 0:02:18]} 15. Rfe1 {[%clk 0:02:48]}  Nf8 {[%clk 0:02:16]} 16. Rxe8 {[%clk 0:02:47]}  Qxe8 {[%clk 0:02:16]} 17. Re1 {[%clk 0:02:48]}  Qd7 {[%clk 0:02:09]} 18. a4 {[%clk 0:02:48]}  Re8 {[%clk 0:02:07]} 19. Rxe8 {[%clk 0:02:46]}  Qxe8 {[%clk 0:02:07]} 20. b5 {[%clk 0:02:47]}  Ne6 {[%clk 0:02:02]} 21. bxc6 {[%clk 0:02:31]}  bxc6 {[%clk 0:02:02]} 22. Qb2 {[%clk 0:02:28]}  Ne4 {[%clk 0:01:44]} 23. Be3 {[%clk 0:02:22]}  f5 {[%clk 0:01:40]} 24. Qb7 {[%clk 0:02:20]}  a5 {[%clk 0:01:35]} 25. Bxe4 {[%clk 0:02:05]}  dxe4 {[%clk 0:01:32]} 26. Nd2 {[%clk 0:02:04]}  f4 {[%clk 0:01:01]} 27. d5 {[%clk 0:01:50]}  fxe3 {[%clk 0:00:56]} 28. d6 {[%clk 0:01:51]}  exd2 {[%clk 0:00:51]} 29. dxc7 {[%clk 0:01:50]}  d1=Q+ {[%clk 0:00:49]} 30. Kh2 {[%clk 0:01:50]}  Nxc7 {[%clk 0:00:46]} 31. Qxc7 {[%clk 0:01:48]}  Qd5 {[%clk 0:00:46]} 32. Qxa5 {[%clk 0:01:46]}  Qee5+ {[%clk 0:00:45]} 33. g3 {[%clk 0:01:46]}  e3 {[%clk 0:00:43]} 34. Qa8+ {[%clk 0:01:36]}  Kh7 {[%clk 0:00:41]} 35. fxe3 {[%clk 0:01:26]}  Qxe3 {[%clk 0:00:41]} 36. h4 {[%clk 0:01:27]}  Qf2+ {[%clk 0:00:40]} 37. Kh3 {[%clk 0:01:25]}  Qdf5+ {[%clk 0:00:37]} 0-1


[Site "https://www.chess.com"]

[Event "Titled Tuesday Blitz July 11 Early 2023"]
[White "Tagliata"]
[Black "Stork, Oliver"]
[BlackFideId "12955728"]
[WhiteElo "2231"]
[BlackElo "2425"]
[Result "0-1"]
[Round "10"]
[TimeControl "180+2"]
[Date "2023.07.11"]
[WhiteClock "0:00:19"]
[BlackClock "0:00:33"]
[Board "113"]

1. e4 {[%clk 0:03:00]}  c5 {[%clk 0:02:59]} 2. Nf3 {[%clk 0:02:59]}  d6 {[%clk 0:02:59]} 3. d4 {[%clk 0:02:59]}  cxd4 {[%clk 0:03:00]} 4. Nxd4 {[%clk 0:02:59]}  Nf6 {[%clk 0:03:00]} 5. Nc3 {[%clk 0:03:00]}  g6 {[%clk 0:03:01]} 6. Be3 {[%clk 0:02:59]}  Bg7 {[%clk 0:03:01]} 7. f3 {[%clk 0:02:56]}  O-O {[%clk 0:03:01]} 8. Qd2 {[%clk 0:02:56]}  Nc6 {[%clk 0:03:01]} 9. Bc4 {[%clk 0:02:54]}  Nxd4 {[%clk 0:03:01]} 10. Bxd4 {[%clk 0:02:54]}  Be6 {[%clk 0:03:01]} 11. Bxe6 {[%clk 0:02:53]}  fxe6 {[%clk 0:03:01]} 12. O-O-O {[%clk 0:02:52]}  Qa5 {[%clk 0:02:59]} 13. Kb1 {[%clk 0:02:52]}  b5 {[%clk 0:02:36]} 14. Ne2 {[%clk 0:02:29]}  b4 {[%clk 0:02:23]} 15. Nc1 {[%clk 0:02:23]}  Qb5 {[%clk 0:02:21]} 16. Qd3 {[%clk 0:02:22]}  Qb7 {[%clk 0:02:17]} 17. Qc4 {[%clk 0:02:21]}  d5 {[%clk 0:02:11]} 18. exd5 {[%clk 0:02:09]}  exd5 {[%clk 0:02:12]} 19. Qd3 {[%clk 0:02:08]}  Rfd8 {[%clk 0:02:01]} 20. Rhe1 {[%clk 0:02:06]}  Rac8 {[%clk 0:01:58]} 21. Nb3 {[%clk 0:02:04]}  Rc4 {[%clk 0:01:27]} 22. Nc5 {[%clk 0:02:01]}  Qc6 {[%clk 0:01:21]} 23. Ne6 {[%clk 0:01:58]}  Rd7 {[%clk 0:01:15]} 24. Nxg7 {[%clk 0:01:52]}  Kxg7 {[%clk 0:01:16]} 25. g4 {[%clk 0:01:52]}  Kf7 {[%clk 0:01:14]} 26. f4 {[%clk 0:01:40]}  Ne4 {[%clk 0:01:07]} 27. Bg1 {[%clk 0:01:21]}  e6 {[%clk 0:00:55]} 28. h4 {[%clk 0:01:10]}  Rb7 {[%clk 0:00:49]} 29. h5 {[%clk 0:01:01]}  Nc3+ {[%clk 0:00:47]} 30. bxc3 {[%clk 0:00:45]}  bxc3+ {[%clk 0:00:46]} 31. Ka1 {[%clk 0:00:45]}  Qa4 {[%clk 0:00:35]} 32. hxg6+ {[%clk 0:00:44]}  hxg6 {[%clk 0:00:33]} 33. Rb1 {[%clk 0:00:30]}  Qxa2+ {[%clk 0:00:32]} 34. Kxa2 {[%clk 0:00:19]}  Ra4# {[%clk 0:00:33]} 0-1


[Site "https://www.chess.com"]